Cogmind - Beta 15 @@@ ROGUE MODE // 2025.07.31 @ 10:15:04 Player: Aon Result: Destroyed by Y-45 Defender with Heavy Assault Rifle Performance ------------- Evolutions (1) 500 Regions Visited (2) 400 Robots Destroyed (10) 50 Value Destroyed (160) 160 Prototype IDs (0) 0 Alien Tech Used (0) 0 Bonus (0) 0 TOTAL SCORE: 1110 Bonus ------- None Cogmind --------- Core Integrity 0/400 Matter 190/300 Energy 100/100 System Corruption 1% Temperature Cool (9) Movement Core (100) Ox1 Location -9/Materials Parts ------- > --- POWER (1) -------- (None) > --- PROPULSION (2) --- (None) > --- UTILITY (4) ------ Small Storage Unit Structural Scanner Signal Interpreter Targeting Computer > --- WEAPON (2) ------- (None) > --- INVENTORY (8) ---- Ion Engine Hover Unit Terrain Scanner Hacking Suite Peak State ------------ > --- POWER ------------ Ion Engine > --- PROPULSION ------- Wheel Compact Wheel > --- UTILITY ---------- Small Storage Unit Structural Scanner Signal Interpreter Targeting Computer > --- WEAPON ----------- Assault Rifle Assault Rifle > --- INVENTORY -------- Light Ion Engine Aluminum Leg Flight Unit Flight Unit Terrain Scanner [Rating: 9] Favorites ----------- Power Light Ion Engine Engine Light Ion Engine Propulsion Aluminum Leg Leg Aluminum Leg Wheel Wheel Hover Unit Hover Unit Flight Unit Flight Unit Utility Small Storage Unit Device Structural Scanner Storage Small Storage Unit Processor Targeting Computer Weapon Assault Rifle Ballistic Gun Assault Rifle Launcher Grenade Launcher Build | -11 -10 -9 ------- Run | Yrd Mat Mat Slots Evolved 2 | . . 2 Power . | . . . Propulsion . | . . . Utility 2 | . . 2 Weapon . | . . . Parts Attached 22 | 6 6 10 Power 4 | 1 1 2 Engine 4 | 1 1 2 Core . | . . . Reactor . | . . . Propulsion 11 | 2 4 5 Treads . | . . . Leg 4 | 2 2 . Wheel 2 | . 2 . Hover 1 | . . 1 Flight 4 | . . 4 Utility 4 | 1 1 2 Device 1 | . . 1 Storage 1 | 1 . . Processor 2 | . 1 1 Hackware . | . . . Protection . | . . . Artifact . | . . . Weapon 3 | 2 . 1 Energy Gun . | . . . Energy Cannon . | . . . Ballistic Gun 2 | 2 . . Ballistic Cannon . | . . . Launcher 1 | . . 1 Special Weapon . | . . . Impact Weapon . | . . . Slashing Weapon . | . . . Piercing Weapon . | . . . Special Melee Weapon . | . . . Unidentified Prototypes . | . . . Parts Lost 12 | . 1 11 Power 2 | . . 2 Propulsion 7 | . 1 6 Utility . | . . . Weapon 3 | . . 3 Highest Loss Streak 8 | . 1 8 To Critical Strikes . | . . . Average Backups 5 | 1 6 4 Power . | . 1 1 Propulsion 2 | 1 3 1 Utility 1 | . 1 1 Weapon . | . . . Tool/Special . | . . . Unused Backups 5 | . 3 2 Power . | . . . Propulsion 2 | . 2 . Utility 2 | . . 2 Weapon 1 | . 1 . Tool/Special . | . . . Average Slot Usage (%) 88 | . 97 73 Engine 11 | . 14 6 Leg 15 | . 25 . Wheel 4 | . 2 7 Flight 2 | . . 6 Device 3 | . . 10 Storage 12 | . 14 11 Processor 15 | . 11 22 Ballistic Gun 20 | . 28 7 Peak Build Rating 9 | 6 7 9 Average Rating 6 | 4 6 6 On Entrance 4 | . 6 7 Naked Turns . | . . . Heaviest Build 14 | 12 14 13 Greatest Support 26 | 20 26 26 Greatest Overweight (x) 3 | . 1 3 Average Overweight (x) . | . . . Largest Inventory Capacity 8 | 8 8 8 Average Capacity 7 | 6 8 8 Most Carried 8 | 3 8 6 Average Carried 5 | 2 6 4 Final Capacity 8 | 8 8 8 Final Carried 7 | 3 7 4 Class Distribution -------------------- 100% | Mutant Dominant Class ---------------- Mutant | -10/Materials Mutant | -9/Materials Resources | -11 -10 -9 ----------- Run | Yrd Mat Mat Matter Collected 388 | 227 124 37 Remotely . | . . . Salvage Created 164 | . 113 51 Parts 15 | . 10 5 Haulers Intercepted . | . . . Recyclers Shooed . | . . . Parts Field Recycled . | . . . Retrieved Matter . | . . . Parts Self-Destructed . | . . . Prevented . | . . . Kills | -11 -10 -9 ------- Run | Yrd Mat Mat Combat Hostiles Destroyed 8 | . 5 3 Melee 1 | . . 1 Guns 5 | . 5 . AOE 2 | . . 2 Classes Destroyed 4 | . 2 2 Operator 1 | . . 1 Watcher 1 | . . 1 Swarmer 6 | . 3 3 Grunt 2 | . 2 . Best Kill Streak 3 | . 3 3 Combat Bots Only 3 | . 3 2 Max Kills in Single Turn 1 | . 1 1 Gunslinging . | . . . Exploded 1 | . . 1 Melee 1 | . . 1 Uniques/NPCs Destroyed . | . . . Combat | -11 -10 -9 -------- Run | Yrd Mat Mat Hostile Shots Fired 154 | . 57 97 Missed 42 | . 17 25 Hits 112 | . 40 72 Melee 3 | . . 3 Projectile 109 | . 40 69 Damage Taken 1322 | . 393 929 Core 459 | . 46 413 Absorbed by Shields . | . . . Core Remaining (%) 90 | 100 81 . Volleys Fired 21 | . 16 5 Largest 2 | . 2 2 Hottest 40 | . 40 40 Shots Fired 39 | . 32 7 Gun 36 | . 32 4 Cannon . | . . . Launcher 3 | . . 3 Special . | . . . Kinetic 36 | . 32 4 Thermal . | . . . Explosive 3 | . . 3 Electromagnetic . | . . . Robot Hit Streak 7 | . 7 2 Robot Miss Streak 3 | . 3 2 Penetration Max . | . . . Secondary Targets 1 | . 1 . Max Gunslinging Chain 1 | . 1 . Shots Hit Robots 25 | . 22 3 Core Hits 14 | . 7 7 Critical Kills . | . . . Critical Parts Destroyed . | . . . Critical Strikes . | . . . Melee Attacks . | . . . Impact . | . . . Slashing . | . . . Piercing . | . . . Sneak Attacks . | . . . Combat Hostiles . | . . . Follow-up Attacks . | . . . Damage Inflicted 509 | . 298 211 Guns 319 | . 298 21 Cannons . | . . . Explosions 171 | . . 171 Melee . | . . . Ramming 19 | . . 19 Kinetic 319 | . 298 21 Thermal . | . . . Explosive 171 | . . 171 Electromagnetic . | . . . Impact . | . . . Slashing . | . . . Piercing . | . . . Highest Corruption 1 | . . 1 Average Corruption 1 | . . 1 Corruption Purged . | . . . Corruption Blocked . | . . . Overload Shots . | . . . Overflow Damage 2 | . . 2 Projectiles . | . . . Explosions 2 | . . 2 Melee . | . . . Knockbacks . | . . . Impact . | . . . Kinetic . | . . . Secondary . | . . . Self-Inflicted Damage 72 | . . 72 Shots 2 | . . 2 Rammed 1 | . . 1 Targets Rammed 1 | . . 1 Kicked . | . . . Crushed . | . . . Highest Temperature 5 | . 5 . Average Temperature 5 | . 5 . Received Heat Transfer 402 | . 138 264 Siege Activations . | . . . Martial Activations . | . . . Shielding Activations . | . . . Robots Disrupted . | . . . Combat Hostiles . | . . . Robots Corrupted . | . . . Combat Hostiles . | . . . Parts Fried . | . . . Impact Corruptions . | . . . Robots Melted . | . . . Combat Hostiles . | . . . Parts Melted . | . . . Heat Transferred . | . . . Parts Sabotaged . | . . . Parts Stolen . | . . . Parts Stripped . | . . . Power Chain Reactions . | . . . Alert | -11 -10 -9 ------- Run | Yrd Mat Mat Maximum Alert Level . | . . . Low Security (%) 100 | 100 100 100 Level 1 . | . . . Level 2 . | . . . Level 3 . | . . . Level 4 . | . . . Level 5 . | . . . High Security . | . . . Max Security . | . . . Peak Influence 194 | . 60 194 Initial . | . . . Average 33 | . 20 67 Influence Increases 379 | . 120 259 Destroy 0b10 Robot/C 160 | . 100 60 Destroy 0b10 Robot/NC 10 | . . 10 Destroy Leader 32 | . 20 12 Destroy Structure 12 | . . 12 Partial Spotted 15 | . . 15 Lose Combat Pursuer 150 | . . 150 Influence Decreases 235 | . 120 115 Time Decay 155 | . 100 55 Lost Part 70 | . 10 60 Purge Threat 10 | . 10 . Squads Dispatched 3 | . 1 2 Investigation 1 | . . 1 Extermination . | . . . Reinforcement 2 | . 1 1 Assault . | . . . Garrison . | . . . Intercept . | . . . Searches Triggered . | . . . Construction Impeded . | . . . Haulers Reinforced . | . . . Active Scanning Responses . | . . . Cargo Convoy Interrupts . | . . . Stealth | -11 -10 -9 --------- Run | Yrd Mat Mat Distress Signals 1 | . 1 . Communications Jammed . | . . . Distress Signals . | . . . Times Spotted 27 | . 8 19 Peak Tracking Total 13 | . 3 13 Tactical Retreats 4 | . . 4 Traps | -11 -10 -9 ------- Run | Yrd Mat Mat Traps Triggered . | . . . Indirectly . | . . . Trap Hack Attempts . | . . . Triggered . | . . . Disarmed . | . . . Reprogrammed . | . . . Reused . | . . . Traps Extracted . | . . . Installed . | . . . Triggered . | . . . Machines | -11 -10 -9 ---------- Run | Yrd Mat Mat Machines Disabled . | . . . Max in Single Turn . | . . . Machines Repaired . | . . . Machines Dismantled . | . . . Machines Sabotaged . | . . . Overloaded Fab Kills . | . . . Hacking | -11 -10 -9 --------- Run | Yrd Mat Mat Machines Accessed 3 | . 1 2 Terminals 3 | . 1 2 Fabricators . | . . . Repair Stations . | . . . Recycling Units . | . . . Scanalyzers . | . . . Garrison Access . | . . . Total Hacks 4 | . 1 3 Successful 2 | . 1 1 Failed 2 | . . 2 Catastrophic 1 | . . 1 Database Lockouts . | . . . Manual . | . . . Terminals 4 | . 1 3 Fabricators . | . . . Repair Stations . | . . . Recycling Units . | . . . Scanalyzers . | . . . Garrison Access . | . . . Terminal Hacks 2 | . 1 1 Record 1 | . . 1 Unreport Threat 1 | . 1 . Fabricator Hacks . | . . . Repair Station Hacks . | . . . Recycling Unit Hacks . | . . . Scanalyzer . | . . . Garrison Access Hacks . | . . . Unauthorized Hacks . | . . . Terminals . | . . . Fabricators . | . . . Repair Stations . | . . . Recycling Units . | . . . Scanalyzers . | . . . Garrison Access . | . . . Data Cores Recovered . | . . . Used . | . . . Hacking Detections 2 | . . 2 Full Trace Events 1 | . . 1 Feedback Events . | . . . Feedback Blocked . | . . . Robot Schematics Acquired . | . . . Robots Built . | . . . Authchips . | . . . Time . | . . . Total Robot Build Rating . | . . . Part Schematics Acquired . | . . . Parts Built . | . . . Authchips . | . . . Time . | . . . Total Part Build Rating . | . . . Parts Repaired . | . . . Time . | . . . Parts Recycled . | . . . Recycled Matter . | . . . Retrieved Matter . | . . . Retrieved Components . | . . . Parts Scanalyzed . | . . . Part Schematics Acquired . | . . . Parts Damaged . | . . . Bothacking | -11 -10 -9 ------------ Run | Yrd Mat Mat Used RIF Installer . | . . . Robots Hacked . | . . . Non-combat . | . . . Combat . | . . . Robot Hacks Applied . | . . . Relay Couplers Released . | . . . Fabnet Peak Effective % . | . . . Robots Rewired . | . . . Allies Hacked . | . . . Hacks Repelled . | . . . Allies | -11 -10 -9 -------- Run | Yrd Mat Mat Total Allies . | . . . Largest Group . | . . . Highest-Rated Group . | . . . Highest-Rated Ally . | . . . Total Orders . | . . . Ally Attacks . | . . . Total Damage . | . . . Kills . | . . . Allies Corrupted . | . . . Allies Melted . | . . . Intel | -11 -10 -9 ------- Run | Yrd Mat Mat Active Infowar (turns) 193 | . . 193 Structural 193 | . . 193 Robot Analysis Total . | . . . Derelict Logs Recovered . | . . . Drone Launches . | . . . Drone Recoveries . | . . . Exploration | -11 -10 -9 ------------- Run | Yrd Mat Mat Turns Passed 605 | 81 330 194 Spaces Moved 506 | 62 227 217 Core 30 | 6 . 24 Treads . | . . . Legs 250 | 56 194 . Wheels 90 | . 33 57 Hover 39 | . . 39 Flight 97 | . . 97 Fastest Speed 37 | 50 90 37 Average Speed 98 | 113 116 75 Slowest Speed 200 | 120 190 200 Overloaded Moves . | . . . Propulsion Burnouts . | . . . Robots Hopped 1 | . . 1 Potential Cave-ins . | . . . Cave-ins Triggered . | . . . Exploration Rate (%) 24 | 5 34 33 Regions Visited 2 Branch Regions . Pre-discovered Areas . | . . . Known Exits Taken . | . . . Unknown Exits Taken 2 | 1 1 . Scrap Searched . | . . . Spaces Dug . | . . . Terrain Destroyed 11 | . . 11 Melee . | . . . Projectile . | . . . AOE 11 | . . 11 Terrain Rammed . | . . . Walls Destroyed . | . . . Machines Disabled . | . . . Actions | -11 -10 -9 --------- Run | Yrd Mat Mat Total 569 | 70 262 237 Wait . | . . . Move 502 | 61 226 215 Hop 1 | . . 1 Pick Up 15 | 3 8 4 Fast Attach 9 | 6 1 2 Attach 7 | . 1 6 Detach . | . . . Swap 6 | . 4 2 Drop 7 | . 6 1 Fire 21 | . 16 5 Melee . | . . . Ram 1 | . . 1 Kick . | . . . Crush . | . . . Escape Stasis . | . . . Rewire . | . . . Trap . | . . . Miscellaneous . | . . . Route ------- -11/Scrapyard -10/Materials -9/Materials History --------- Turn | Location | Event 16 | -11/Scrapyard | Discovered new exit (range 15) 82 | -11/Scrapyard | Entered Materials 336 | -10/Materials | Build established: Mutant 402 | -10/Materials | Discovered new exit (range 10) 412 | -10/Materials | Entered another Materials area 412 | -9/Materials | Evolved 2 slots: Utility x2 531 | -9/Materials | Core integrity fell below 50% 557 | -9/Materials | Lost 8 parts (1p4n3w) 584 | -9/Materials | Core integrity fell below 20% 606 | -9/Materials | Destroyed by Y-45 Defender with Heavy Assault Rifle Last Messages --------------- Flight Unit destroyed. Destroyed Flight Unit. Destroyed Hover Unit. W-16 Scout destroyed. S-10 Pest destroyed. Flight Unit destroyed. Grenade Launcher destroyed. Acquired Flight Unit. Connecting with Terminal... ALERT: Suspicious activity at Terminal M009. Dispatching Investigation squad. Slammed into S-10 Pest. S-10 Pest destroyed. [Achievement: Fist Fight] Destabilizing: System corrupted (+1). Acquired Flight Unit. Acquired Lgt. Ion Engine. Acquired 20 matter. Flight Unit destroyed. Lgt. Ion Engine destroyed. Map ----- +----------------------------------------------------+ | ?????????????????????????????????????????????????? | | ?????????????????????????????????????????????????? | | ?????????????????????????????????????????????????? | | ??????????????????????????###########????????????? | | ?????????????????#######??########## ????????????? | | ?????????????????#######??## # ????????????? | | ????????????#######"""###### """"" # ????????????? | | ??#################"Y"###### ""T"" # ????????????? | | ??############ [ + # ????????????? | | ??## # ##/######### ????????????? | | ??## ]# """# ! ### ????????????? | | ??## """ # T"# ##??????????????? | | ??## """ + """# ##??????????????? | | ??## """ # # """ [##??????????????? | | ??## "" ### + """"" ##??????????????? | | ??## / S"" ### # """"" + ??????????????? | | ??## [ "" ### !! # """"" ##??????????????? | | ??############## ^ !! # """ ? ##??????????????? | | ??############## ! # ##??????????????? | | ??????????????## ########?????????????????? | | ??????????????## ########?????????????????? | | ??????????????## ##???????????????????????? | | ??????????????## ] ##???????????????????????? | | ????????????#### ^|| ###########??????????????? | | ????????????#### ]|| ###########??????????????? | | ????????????## ]| @ Y????????? | | ????????????## ????????? | | ??????######## ????????? | | ??????######## ##"Y"##################+????????? | | ?????? # ##"""########### ????????? | | ???????" """ # #########???????????????????????? | | ??????"" """ # #########???????????????????????? | | ??????"" """ # ##???????????????????????? | | ??????"" """ + ##???????????????????????? | | ??????"" """ # # ???????????????????????? | | ????? # ^ """ # ???????????????????????? | | ???# # ^ """ # ???????????????????????? | | ???######### # """ # ???????????????????????? | | ???## ## # ???????????????????????? | | ???## # ???????????????????????? | | ???## ##???????????????????????? | | ???## ##???????????????????????? | | ???## # #######???????????????????? # ? | | ???### ## ######? #???????????????? # ? | | ???### ## ##????? ##???????????????? + | | ????## ?## ##????? ##????????????????## | | ????## ??## ##????? ##????????????????## | | ????## ??## ##????? ##??????????????????? | | ???? # ??## ####### # ???????????????????? | | ?????????## ####### # ???????????????????? | +----------------------------------------------------+ Best States ------------- Heat Dissipation 28 Energy Generation 10 Energy Capacity 250 Matter Stores 300 Matter Capacity 300 Sight Range 16 Terrain Scan Density 10 Evasion (%) 62 Targeting Accuracy 5 Item Schematics ----------------- None Robot Schematics ------------------ None Fabricated ------------ Nothing Repaired ---------- Nothing Alien Tech Used ----------------- None Achievements -------------- Fist Fight Challenges ------------ None Game ------ Seed SwordUltimateMatter Manual? 0 Play Time 00:11:54 Cumulative 7.0 hours Start 2025.07.31 @ 10:06:44 End 2025.07.31 @ 10:15:04 Sessions 1 Manual Loads 0 Difficulty Rogue Special Mode None Game No. 13 Rogue 11 Adventurer 0 Explorer 2 Win Type - Total 0 Types 0/0/0/0/0/0/0/0/0/0 Lore% 9 Gallery% 15 Achievement% 17 Wizard Run 0 Options --------- Layout 1 ASCII 0 Keyboard 0 Movement Numpad Keybinds 0 Fullscreen 1 Font 24/Smallcaps Map View 50x35 Zoom Use 0% Tactical HUD 0 Map Filters NONE Filters NONE Steam 1 RUN: c134cf0f-c04c-45d8-8c4c-95bb40b8fb6a